bitfinex/quotes_BTCUSD_20240101
["timestamp","ask_amount","ask_price","bid_price","bid_amount"]
[1704097920366,0.05445923,42529.0,42525.0,0.2604]
[1704097920575,0.05445923,42529.0,42528.0,0.21792]
[1704097920787,0.05445923,42529.0,42526.0,0.24876]
[1704097920999,0.05445923,42529.0,42528.0,0.22044]
[1704097921181,0.05445923,42529.0,42527.0,0.23088]
[1704097921413,0.05445923,42529.0,42528.0,0.22212]
[1704097921625,0.008,42530.0,42528.0,0.22212]
[1704097921839,0.006,42530.0,42524.0,0.43674]
[1704097922045,0.002,42529.0,42525.0,0.14214]
[1704097922255,0.03684699,42530.0,42524.0,0.44478]
[1704097922442,0.03684699,42530.0,42526.0,0.26712]
[1704097922763,0.006,42529.0,42527.0,0.51074]
[1704097923222,0.002,42529.0,42528.0,0.23592]
[1704097923854,0.04284699,42530.0,42528.0,0.23592]
[1704097924060,0.03684699,42530.0,42528.0,0.3774]
[1704097924271,0.006,42529.0,42528.0,0.3774]
[1704097924492,0.004,42529.0,42528.0,0.3774]
[1704097924905,0.006,42529.0,42528.0,0.3774]
[1704097925115,0.006,42529.0,42528.0,0.25944]
[1704097925339,0.006,42529.0,42528.0,0.3972]
[1704097925970,0.002,42529.0,42528.0,0.3972]
[1704097926861,0.002,42529.0,42528.0,0.27924]
[1704097927127,0.006,42529.0,42528.0,0.27924]
[1704097927578,0.23921711,42529.0,42527.0,0.2591]
[1704097927796,1.08269897,42528.0,42523.0,0.2588]
[1704097928011,0.470308,42526.0,42519.0,0.8516]
[1704097928229,0.27387987,42525.0,42523.0,0.2588]
[1704097928454,0.27387987,42525.0,42519.0,0.1945]
[1704097928455,0.04066276,42524.0,42519.0,0.1945]
[1704097928667,0.27387987,42524.0,42520.0,0.2588]
[1704097928885,0.23321711,42524.0,42520.0,0.2588]
[1704097929101,0.23321711,42524.0,42523.0,0.001]
[1704097929503,0.23321711,42524.0,42523.0,0.002]
[1704097929934,0.23321711,42524.0,42523.0,0.001]
[1704097930134,0.23321711,42524.0,42520.0,0.2588]
[1704097930357,0.23821711,42524.0,42520.0,0.2588]
[1704097930637,0.24221711,42524.0,42520.0,0.2588]
[1704097930839,0.23821711,42524.0,42520.0,0.2588]
[1704097931257,0.24221711,42524.0,42520.0,0.2588]
[1704097931492,0.23821711,42524.0,42520.0,0.2588]
[1704097931692,0.23721711,42524.0,42520.0,0.2588]
[1704097933192,0.24221711,42524.0,42520.0,0.2588]
[1704097935088,0.31909031,42524.0,42520.0,0.2588]
[1704097936138,0.24221711,42524.0,42520.0,0.2588]
[1704097939701,0.24221711,42524.0,42521.0,0.00587382]
[1704097940610,0.23321711,42524.0,42521.0,0.00587382]
[1704097940817,0.24221711,42524.0,42521.0,0.00587382]
[1704097942502,0.29842097,42524.0,42521.0,0.00587382]
[1704097945476,0.05620386,42523.0,42521.0,0.00587382]
[1704097946825,0.06020386,42523.0,42521.0,0.00587382]
[1704097947007,0.06220386,42523.0,42521.0,0.00587382]
[1704097948433,0.16188407,42522.0,42521.0,0.00587382]
[1704097948867,0.19006647,42522.0,42521.0,0.00587382]
[1704097949097,0.42328358,42522.0,42521.0,0.00587382]
[1704097949616,0.42528358,42522.0,42521.0,0.00587382]
[1704097949834,0.31960337,42522.0,42521.0,0.00587382]
[1704097950045,0.32060337,42522.0,42521.0,0.00587382]
[1704097957746,0.3614104,42522.0,42521.0,0.00587382]
[1704097960391,0.27702414,42522.0,42521.0,0.00587382]
[1704097962401,0.38956097,42522.0,42521.0,0.00587382]
[1704097969305,0.27702414,42522.0,42521.0,0.00587382]
[1704097970376,0.41783872,42522.0,42521.0,0.00587382]
[1704097972256,0.27702414,42522.0,42521.0,0.00587382]
[1704097977618,0.04380703,42522.0,42521.0,0.00587382]
[1704097986003,0.11594186,42522.0,42521.0,0.00587382]
[1704097986212,0.003,42522.0,42521.0,0.00587382]
[1704097986388,0.08770414,42522.0,42521.0,0.00587382]
[1704097987360,0.003,42522.0,42521.0,0.00587382]
[1704097988435,0.05944644,42522.0,42521.0,0.00587382]
[1704097992846,0.003,42522.0,42521.0,0.00587382]
[1704097995522,0.003,42522.0,42521.0,0.07510086]
[1704097995725,0.003,42522.0,42521.0,0.00587382]
[1704098009743,0.05944644,42522.0,42521.0,0.00587382]
[1704098010171,0.003,42522.0,42521.0,0.00587382]
[1704098010379,0.05944644,42522.0,42521.0,0.00587382]
[1704098011026,0.003,42522.0,42521.0,0.00587382]
[1704098011423,0.05944644,42522.0,42521.0,0.00587382]
[1704098012046,0.05937555,42522.0,42521.0,0.00587382]
[1704098012676,0.003,42522.0,42521.0,0.00587382]
[1704098013996,0.05937555,42522.0,42521.0,0.00587382]
[1704098014260,0.003,42522.0,42521.0,0.00587382]
[1704098014463,0.05937555,42522.0,42521.0,0.00587382]
[1704098014672,0.003,42522.0,42521.0,0.00587382]
[1704098015095,0.05937555,42522.0,42521.0,0.00587382]
[1704098016964,0.15672785,42522.0,42521.0,0.00587382]
[1704098017390,0.18496995,42522.0,42521.0,0.00587382]
[1704098017812,0.15655993,42522.0,42521.0,0.00587382]
[1704098018047,0.003,42522.0,42521.0,0.00587382]
[1704098018256,0.08757633,42522.0,42521.0,0.00587382]
[1704098018957,0.05938317,42522.0,42521.0,0.00587382]
[1704098019162,0.08757633,42522.0,42521.0,0.00587382]
[1704098020378,0.003,42522.0,42521.0,0.00587382]
[1704098020995,0.08757633,42522.0,42521.0,0.00587382]
[1704098022727,0.003,42522.0,42521.0,0.00587382]
[1704098023350,0.08757633,42522.0,42521.0,0.00587382]
[1704098027691,0.41821388,42522.0,42521.0,0.00587382]
[1704098027915,0.27702992,42522.0,42521.0,0.00587382]
[1704098028463,0.74737392,42522.0,42521.0,0.00587382]
[1704098028692,0.78422518,42522.0,42521.0,0.00587382]
[1704098029447,0.9251964,42522.0,42521.0,0.00587382]
[1704098029592,1.01771604,42522.0,42521.0,0.00587382]
[1704098030259,0.40640082,42522.0,42521.0,0.00587382]
[1704098030491,1.01769857,42522.0,42521.0,0.00587382]
[1704098031893,0.92517893,42522.0,42521.0,0.00587382]
[1704098032293,0.78422518,42522.0,42521.0,0.00587382]
[1704098032539,0.925159,42522.0,42521.0,0.00587382]
[1704098034651,0.78422518,42522.0,42521.0,0.00587382]
[1704098035267,0.89695327,42522.0,42521.0,0.00587382]
[1704098039958,0.78422518,42522.0,42521.0,0.00587382]
[1704098040392,0.86875638,42522.0,42521.0,0.00587382]
[1704098040840,0.79976498,42522.0,42521.0,0.00587382]
[1704098041484,0.003,42522.0,42521.0,0.0518412]
[1704098041938,0.003,42522.0,42521.0,0.00587382]
[1704098048691,4.983e-05,42522.0,42521.0,0.00587382]
[1704098051330,0.05640316,42522.0,42521.0,0.00587382]
[1704098052002,4.983e-05,42522.0,42521.0,0.00587382]
[1704098054395,0.05640316,42522.0,42521.0,0.00587382]
[1704098060337,0.08458103,42522.0,42521.0,0.00587382]
[1704098060777,0.31779814,42522.0,42521.0,0.00587382]
[1704098060982,0.74433726,42522.0,42521.0,0.00587382]
[1704098061616,0.76733726,42522.0,42521.0,0.00587382]
[1704098062898,1.23631462,42522.0,42521.0,0.00587382]
[1704098063109,1.40058883,42522.0,42521.0,0.00687382]
[1704098063314,1.60145008,42522.0,42521.0,0.00687382]
[1704098063550,1.43218812,42522.0,42521.0,0.00687382]
[1704098063806,1.43018812,42522.0,42521.0,0.00687382]
[1704098064017,1.37594812,42522.0,42521.0,0.00687382]
[1704098064147,1.42388812,42522.0,42521.0,0.00587382]
[1704098064354,1.42388812,42522.0,42521.0,0.00787382]
[1704098064355,1.44488812,42522.0,42521.0,0.00787382]
[1704098065627,1.43788812,42522.0,42521.0,0.00687382]
[1704098066052,1.30533724,42522.0,42521.0,0.00787382]
[1704098066480,1.47446591,42522.0,42521.0,0.00787382]
[1704098066682,0.8480121,42522.0,42521.0,0.00787382]
[1704098066903,1.2644161,42522.0,42521.0,0.00787382]
[1704098067140,1.3181761,42522.0,42521.0,0.00787382]
[1704098067387,1.30428228,42522.0,42521.0,0.00787382]
[1704098068101,1.47337737,42522.0,42521.0,0.00787382]
[1704098068330,1.45162002,42522.0,42521.0,0.00787382]
[1704098069272,1.94740402,42522.0,42521.0,0.00787382]
[1704098070126,1.00671602,42522.0,42521.0,0.00787382]
[1704098070325,1.94740402,42522.0,42521.0,0.00787382]
[1704098070943,1.80006628,42522.0,42521.0,0.00787382]
[1704098074355,1.99736599,42522.0,42521.0,0.00787382]
[1704098075244,1.84213114,42522.0,42521.0,0.00787382]
[1704098075657,2.14213114,42522.0,42519.0,0.1945]
[1704098075861,1.17394911,42520.0,42519.0,0.1945]
[1704098076064,1.53767543,42520.0,42519.0,0.1945]
[1704098076295,1.60247543,42520.0,42519.0,0.1945]
[1704098077023,1.60247543,42520.0,42519.0,0.1955]
[1704098077399,1.60247543,42520.0,42519.0,0.1945]
[1704098077608,1.85483185,42520.0,42519.0,0.1955]
[1704098078413,1.61347543,42520.0,42519.0,0.1955]
[1704098078620,1.64660543,42520.0,42519.0,0.1965]
[1704098079679,1.17623943,42520.0,42519.0,0.1965]
[1704098080311,1.11143943,42520.0,42519.0,0.1965]
[1704098080530,1.16429943,42520.0,42519.0,0.1965]
[1704098081056,1.37748388,42520.0,42519.0,0.1965]
[1704098081693,1.16429943,42520.0,42519.0,0.1965]
[1704098081906,1.11143943,42520.0,42519.0,0.1965]
[1704098085107,0.64107343,42520.0,42519.0,0.1965]
[1704098085305,1.11143943,42520.0,42519.0,0.1965]
[1704098086646,1.16423943,42520.0,42519.0,0.1965]
[1704098086845,1.33038348,42520.0,42519.0,0.1965]
[1704098088389,1.80074948,42520.0,42517.0,0.2637]
[1704098088590,0.61108494,42518.0,42517.0,0.2637]
[1704098088744,1.20802837,42518.0,42517.0,0.2637]
[1704098088947,1.49932921,42518.0,42517.0,0.2637]
[1704098089559,1.49932921,42518.0,42517.0,0.2647]
[1704098089736,1.49932921,42518.0,42517.0,0.2637]
[1704098090147,1.50732921,42518.0,42517.0,0.2647]
[1704098090804,1.97771821,42518.0,42517.0,0.2647]
[1704098091021,1.97771821,42518.0,42517.0,0.2657]
[1704098091208,1.83702227,42518.0,42517.0,0.2657]
[1704098091436,1.83702227,42518.0,42517.0,0.2647]
[1704098091793,1.84602227,42518.0,42517.0,0.2657]
[1704098093382,0.3,42517.0,42514.0,0.2794]
[1704098093612,0.23321711,42515.0,42514.0,0.2794]
[1704098093821,0.23321711,42515.0,42510.0,0.1945]
[1704098093822,1.66837213,42515.0,42510.0,0.1945]
[1704098094050,0.470466,42511.0,42510.0,0.1945]
[1704098094267,1.25920875,42511.0,42510.0,0.1945]
[1704098094475,1.31152875,42511.0,42510.0,0.1945]
[1704098094683,1.25920875,42511.0,42510.0,0.1945]
[1704098095330,1.33042875,42511.0,42510.0,0.1955]
[1704098095572,1.34842875,42511.0,42510.0,0.1955]
[1704098097068,1.81889475,42511.0,42510.0,0.1955]
[1704098098001,1.84493475,42511.0,42510.0,0.1955]
[1704098098430,1.82615475,42511.0,42510.0,0.1955]
[1704098098634,1.65548543,42511.0,42510.0,0.1955]
[1704098099070,1.59500543,42511.0,42510.0,0.1955]
[1704098099494,1.26518973,42511.0,42510.0,0.1955]
[1704098099926,1.2370613,42511.0,42510.0,0.1955]
[1704098100142,1.26518973,42511.0,42510.0,0.1955]
[1704098100347,1.21594747,42511.0,42510.0,0.1955]
[1704098100975,1.10340943,42511.0,42510.0,0.1955]
[1704098101194,1.21594747,42511.0,42510.0,0.1955]
[1704098101408,1.18782706,42511.0,42510.0,0.1955]
[1704098102136,1.15969139,42511.0,42510.0,0.1955]
[1704098102341,1.11896507,42511.0,42510.0,0.1955]
[1704098102547,1.06268311,42511.0,42510.0,0.1955]
[1704098103402,0.018,42511.0,42510.0,0.1945]
[1704098103610,0.036,42511.0,42510.0,0.1955]
[1704098104025,0.036,42511.0,42510.0,0.1945]
[1704098104239,0.35628196,42514.0,42510.0,0.1945]
[1704098104462,0.027,42511.0,42510.0,0.1965]
[1704098104893,0.3,42512.0,42510.0,0.1945]
[1704098105098,0.006,42511.0,42510.0,0.1955]
[1704098105311,0.013,42511.0,42510.0,0.1965]
[1704098106000,0.007,42511.0,42510.0,0.1955]
[1704098106221,0.007,42511.0,42510.0,0.1965]
[1704098106443,0.36428196,42512.0,42510.0,0.1955]
[1704098106718,0.308,42512.0,42510.0,0.1955]
[1704098107171,0.316,42512.0,42510.0,0.1965]
[1704098107378,0.36428196,42512.0,42510.0,0.1955]
[1704098107587,0.006,42511.0,42510.0,0.1965]
[1704098108002,0.308,42512.0,42510.0,0.1955]
[1704098108213,0.316,42512.0,42510.0,0.1965]
[1704098108425,0.308,42512.0,42510.0,0.1955]
[1704098108848,0.006,42511.0,42510.0,0.1965]
[1704098109090,0.308,42512.0,42510.0,0.1955]
[1704098109345,0.3,42512.0,42510.0,0.1945]
[1704098109592,0.308,42512.0,42510.0,0.1955]
[1704098109802,0.007,42511.0,42510.0,0.1965]
[1704098110358,0.308,42512.0,42510.0,0.1955]
[1704098110884,0.308,42512.0,42510.0,0.1965]
[1704098111101,0.006,42511.0,42510.0,0.1955]
[1704098111403,0.007,42511.0,42510.0,0.1955]
[1704098111645,0.007,42511.0,42510.0,0.1965]
[1704098112308,0.007,42511.0,42510.0,0.24803571]
[1704098112518,0.006,42511.0,42510.0,0.24803571]
[1704098112727,0.006,42511.0,42510.0,0.24903571]
[1704098113132,0.006,42511.0,42510.0,0.24803571]
[1704098113498,0.013,42511.0,42510.0,0.24903571]
[1704098114868,0.013,42511.0,42510.0,0.29338928]
[1704098115077,0.013,42511.0,42510.0,0.24903571]
[1704098117057,0.013,42511.0,42510.0,0.30189571]
[1704098117719,0.013,42511.0,42510.0,0.24903571]
[1704098117919,0.013,42511.0,42510.0,0.30213571]
[1704098118129,0.013,42511.0,42510.0,0.24903571]
[1704098118341,0.013,42511.0,42510.0,0.30273571]
[1704098119086,0.013,42511.0,42510.0,0.35245928]
[1704098119872,0.013,42511.0,42510.0,0.67717928]
[1704098120077,0.013,42511.0,42510.0,0.62464357]
[1704098120274,0.013,42511.0,42510.0,0.77640317]
[1704098120500,0.013,42511.0,42510.0,0.62464357]
[1704098120709,0.007,42511.0,42510.0,0.62364357]
[1704098120919,0.007,42511.0,42510.0,0.71946357]
[1704098121187,0.013,42511.0,42510.0,0.72046357]
[1704098121336,0.007,42511.0,42510.0,0.88020839]
[1704098121537,0.007,42511.0,42510.0,0.72146357]
[1704098121741,0.35628196,42522.0,42510.0,0.8573325]
[1704098122082,0.35628196,42522.0,42512.0,0.1]
[1704098122482,0.35628196,42522.0,42513.0,0.30926]
[1704098122710,0.35628196,42522.0,42514.0,0.07047098]
[1704098122912,0.37228196,42522.0,42514.0,0.14019098]
[1704098123086,0.37228196,42522.0,42515.0,0.06204]
[1704098123308,0.35628196,42522.0,42515.0,0.06204]
[1704098123660,0.37128196,42522.0,42516.0,0.233]
[1704098123839,0.37228196,42522.0,42516.0,0.233]
[1704098124047,0.38728196,42522.0,42517.0,0.048]
[1704098124500,0.37228196,42522.0,42517.0,0.048]
[1704098124726,0.331,42522.0,42517.0,0.048]
[1704098125391,0.3,42522.0,42518.0,0.10908937]
[1704098125610,0.316,42522.0,42519.0,0.2184]
[1704098126051,0.35628196,42522.0,42519.0,0.2184]
[1704098126274,0.3,42522.0,42519.0,0.2184]
[1704098126482,0.316,42522.0,42519.0,0.2184]
[1704098126701,0.331,42522.0,42519.0,0.2184]
[1704098126913,0.3,42522.0,42519.0,0.2184]
[1704098127146,0.801345,42522.0,42519.0,0.2204]
[1704098128038,0.801345,42522.0,42519.0,0.2194]
[1704098128039,0.786345,42522.0,42519.0,0.2194]
[1704098128249,0.501345,42522.0,42519.0,0.2341]
[1704098128485,0.05628196,42524.0,42520.0,0.03284894]
[1704098128705,0.016,42522.0,42519.0,0.2341]
[1704098129158,0.770324,42524.0,42519.0,0.2331]
[1704098129366,0.016,42522.0,42519.0,0.2341]
[1704098129790,0.031,42522.0,42519.0,0.2351]
[1704098130432,0.031,42522.0,42519.0,0.001]
[1704098130433,0.015,42522.0,42519.0,0.001]
[1704098130646,0.35628196,42524.0,42516.0,0.2331]
[1704098130861,0.470355,42521.0,42519.0,0.001]
[1704098131067,0.470355,42521.0,42516.0,0.2331]
[1704098131514,0.470355,42521.0,42519.0,0.001]
[1704098132174,0.470355,42521.0,42516.0,0.2331]
[1704098132393,0.477355,42521.0,42516.0,0.2341]
[1704098132865,0.470355,42521.0,42516.0,0.2331]
[1704098133259,0.60479041,42521.0,42519.0,0.001]
[1704098133921,0.477355,42521.0,42519.0,0.001]
[1704098134336,0.483355,42521.0,42519.0,0.001]
[1704098134566,0.470355,42521.0,42516.0,0.2331]
[1704098134776,0.477355,42521.0,42519.0,0.001]
[1704098135004,0.483355,42521.0,42519.0,0.001]
[1704098135466,0.476355,42521.0,42519.0,0.001]
[1704098135684,0.483355,42521.0,42519.0,0.002]
[1704098145082,0.62053217,42521.0,42519.0,0.002]
[1704098145296,0.67681413,42521.0,42519.0,0.002]
[1704098145714,0.53963696,42521.0,42519.0,0.002]
[1704098146808,0.53964396,42521.0,42519.0,0.002]
[1704098150489,0.05628196,42520.0,42519.0,0.002]
[1704098151334,0.05628196,42520.0,42519.0,0.001]
[1704098151484,0.09584075,42520.0,42519.0,0.001]
[1704098152135,0.09584075,42520.0,42516.0,0.2331]
[1704098152341,0.06128196,42520.0,42519.0,0.001]
[1704098152549,0.06128196,42520.0,42519.0,0.002]
[1704098152550,0.10584196,42520.0,42519.0,0.002]
[1704098155436,0.04956,42520.0,42519.0,0.002]
[1704098156523,0.13397763,42520.0,42519.0,0.002]
[1704098159348,0.04956,42520.0,42519.0,0.002]
[1704098159991,0.13417347,42520.0,42519.0,0.002]
[1704098160201,0.01,42520.0,42519.0,0.12248365]
[1704098160418,0.01,42520.0,42519.0,0.69697713]
[1704098160633,0.0564111,42526.0,42522.0,0.1]
[1704098160840,0.0564111,42526.0,42519.0,0.35953348]
[1704098160841,0.0564111,42528.0,42526.0,0.3]
[1704098161047,0.0564111,42528.0,42523.0,0.23321711]
[1704098161048,0.0681111,42530.0,42528.0,0.2]
[1704098161264,0.0681111,42530.0,42529.0,0.03]
[1704098161476,0.16884577,42539.0,42529.0,0.03]
[1704098161689,0.03937991,42538.0,42530.0,0.17003642]
[1704098161899,0.13350491,42538.0,42530.0,0.17003642]
[1704098162118,0.01591091,42538.0,42530.0,0.17003642]
[1704098162322,0.01591091,42538.0,42531.0,0.06797364]
[1704098162750,0.01591091,42538.0,42532.0,0.2281]
[1704098162986,0.03677038,42537.0,42532.0,0.2281]
[1704098163186,0.34591091,42538.0,42532.0,0.2281]
[1704098163423,0.33091091,42538.0,42532.0,0.2281]
[1704098163660,0.01591091,42538.0,42533.0,0.04671101]
[1704098163868,0.03684034,42537.0,42533.0,0.04671101]
[1704098164285,0.03684034,42537.0,42533.0,0.08856188]
[1704098165336,0.04284034,42537.0,42533.0,0.09056188]
[1704098165991,0.04284034,42537.0,42533.0,0.08956188]
[1704098166198,0.04884034,42537.0,42533.0,0.09056188]
[1704098166486,0.04884034,42537.0,42533.0,0.04385087]
[1704098166721,0.04884034,42537.0,42533.0,0.002]
[1704098167120,0.470202,42535.0,42533.0,0.002]
[1704098167364,0.3,42534.0,42533.0,0.002]
[1704098168198,0.3,42534.0,42533.0,0.001]
[1704098168702,0.473202,42535.0,42532.0,0.2281]
[1704098168903,0.476202,42535.0,42532.0,0.2281]
[1704098169071,0.001,42534.0,42532.0,0.2281]
[1704098169622,0.015,42534.0,42533.0,0.002]
[1704098169836,0.014,42534.0,42533.0,0.001]
[1704098170947,0.007,42534.0,42532.0,0.2281]
[1704098171381,0.013,42534.0,42532.0,0.2291]
[1704098171602,0.018,42534.0,42532.0,0.2301]
[1704098174355,0.488212,42534.0,42532.0,0.2301]
[1704098186800,0.488217,42534.0,42532.0,0.2301]
[1704098197148,0.018,42534.0,42532.0,0.2301]
[1704098197334,0.488216,42534.0,42532.0,0.2301]
[1704098197512,0.03677144,42533.0,42532.0,0.2301]
[1704098198317,0.50699444,42533.0,42532.0,0.001]
[1704098198536,0.56324796,42533.0,42532.0,0.001]
[1704098198746,0.51099444,42533.0,42532.0,0.002]
[1704098198972,0.56727712,42533.0,42532.0,0.002]
[1704098199584,0.56727712,42533.0,42532.0,0.001]
[1704098200099,0.57127712,42533.0,42532.0,0.002]
[1704098200247,0.51499444,42533.0,42532.0,0.002]
[1704098200454,0.57127712,42533.0,42532.0,0.002]
[1704098201765,0.51499444,42533.0,42532.0,0.002]
[1704098201973,0.57131665,42533.0,42532.0,0.002]
[1704098202381,0.59938418,42533.0,42532.0,0.002]
[1704098203427,0.51499444,42533.0,42532.0,0.002]
[1704098204312,0.62753324,42533.0,42532.0,0.002]
[1704098204736,0.51499444,42533.0,42532.0,0.002]
[1704098204938,0.65566997,42533.0,42532.0,0.002]
[1704098205601,0.51499444,42533.0,42532.0,0.002]
[1704098218783,0.74821155,42533.0,42532.0,0.002]
[1704098218999,0.77121155,42533.0,42532.0,0.002]
[1704098219212,0.94005732,42533.0,42532.0,0.002]
[1704098219424,0.77121155,42533.0,42532.0,0.002]
[1704098219832,0.93605732,42533.0,42532.0,0.001]
[1704098219983,0.93205732,42533.0,42524.0,0.213]
[1704098220198,0.05640775,42526.0,42524.0,0.213]
[1704098221802,0.55014588,42529.0,42524.0,0.26304207]
[1704098221974,0.78336299,42529.0,42524.0,0.26304207]
[1704098222190,0.03677753,42528.0,42524.0,0.26304207]
[1704098222478,0.78336299,42529.0,42524.0,0.26304207]
[1704098222706,0.005,42526.0,42524.0,0.26404207]
[1704098223089,0.005,42526.0,42524.0,0.26304207]
[1704098223836,0.008,42526.0,42524.0,0.26304207]
[1704098224454,0.003,42526.0,42524.0,0.26304207]
[1704098225665,0.006,42526.0,42524.0,0.26304207]
[1704098225841,0.006,42526.0,42524.0,0.213]
[1704098230475,0.23321711,42525.0,42524.0,0.213]
[1704098230698,0.40581333,42525.0,42521.0,0.2169]
[1704098230912,0.12136129,42524.0,42521.0,0.2169]
[1704098231130,0.12136129,42523.0,42521.0,0.2169]
[1704098231545,0.08458057,42523.0,42521.0,0.2169]
[1704098231791,0.31779768,42523.0,42521.0,0.2169]
[1704098232023,0.31779768,42523.0,42516.0,0.2289]
[1704098232024,0.40578125,42522.0,42516.0,0.2289]
[1704098232233,0.05638334,42520.0,42516.0,0.2289]
[1704098232442,0.05638334,42519.0,42516.0,0.2289]
[1704098233298,0.05638334,42520.0,42516.0,0.2289]
[1704098233741,0.003,42519.0,42516.0,0.2289]
[1704098234879,0.006,42519.0,42516.0,0.2289]
[1704098244978,0.00546633,42519.0,42516.0,0.2289]
[1704098246160,0.70906144,42519.0,42516.0,0.2289]
[1704098248006,0.70906144,42519.0,42517.0,0.02289]
[1704098248179,0.70906144,42519.0,42516.0,0.2289]
[1704098248820,0.70606144,42519.0,42516.0,0.2289]
[1704098249243,0.70906144,42519.0,42516.0,0.2289]
[1704098249674,0.70606144,42519.0,42516.0,0.2289]
[1704098250111,0.70906144,42519.0,42516.0,0.2289]
[1704098250683,0.00546633,42519.0,42516.0,0.42884713]
[1704098260764,0.00546633,42519.0,42516.0,0.2557333]
[1704098261732,0.00546633,42519.0,42516.0,0.2289]
[1704098275365,0.00546633,42519.0,42516.0,0.2748766]
[1704098279063,0.00546633,42519.0,42517.0,0.048]
[1704098279809,0.00246633,42519.0,42517.0,0.048]
[1704098280008,0.07938334,42522.0,42517.0,0.048]
[1704098280243,0.003,42519.0,42517.0,0.08028766]
[1704098280531,0.005,42519.0,42517.0,0.08028766]
[1704098280748,0.005,42519.0,42516.0,0.2748766]
[1704098280749,0.005,42519.0,42518.0,0.05712]
[1704098280970,0.05638334,42523.0,42518.0,0.05712]
[1704098281199,0.014,42522.0,42517.0,0.06978]
[1704098281325,0.007,42522.0,42519.0,0.05592]
[1704098281544,0.007,42522.0,42519.0,0.15641522]
[1704098281759,0.007,42522.0,42520.0,0.04956]
[1704098282370,0.05638334,42523.0,42520.0,0.04956]
[1704098282577,0.05638334,42523.0,42520.0,0.27836]
[1704098282978,0.05638334,42523.0,42521.0,0.04524]
[1704098283407,0.007,42522.0,42521.0,0.04524]
[1704098283829,0.06438334,42523.0,42521.0,0.04524]
[1704098284022,0.34938202,42522.0,42516.0,0.0615]
[1704098284279,0.31260045,42522.0,42516.0,0.2155]
[1704098284563,0.09316539,42521.0,42516.0,0.2155]
[1704098284763,0.28960045,42521.0,42516.0,0.2155]
[1704098285177,0.23321711,42520.0,42513.0,0.0495]
[1704098285498,0.23321711,42520.0,42513.0,0.2155]
[1704098285713,0.23321711,42520.0,42513.0,0.26308]
[1704098285714,0.023,42519.0,42513.0,0.26308]
[1704098286133,0.25621711,42519.0,42513.0,0.2155]
[1704098287063,0.26121711,42519.0,42513.0,0.2155]
[1704098287518,0.09316875,42518.0,42513.0,0.2155]
[1704098287756,0.05638334,42518.0,42513.0,0.2155]
[1704098288448,0.05638334,42517.0,42513.0,0.2155]
[1704098288657,0.09316934,42516.0,42510.0,0.8566]
[1704098288871,0.05638334,42515.0,42510.0,0.8566]
[1704098289308,0.05638334,42513.0,42510.0,0.8566]
[1704098289517,0.05638334,42513.0,42511.0,0.2328]
[1704098290428,0.03685723,42515.0,42511.0,0.2328]
[1704098290675,0.03685723,42515.0,42510.0,0.8566]
[1704098290676,0.001,42513.0,42510.0,0.8566]
[1704098290894,0.03685723,42515.0,42510.0,0.8566]
[1704098291108,0.005,42513.0,42510.0,0.8566]
[1704098291316,0.005,42513.0,42510.0,0.1995]
[1704098291533,0.03685723,42515.0,42510.0,0.1995]
[1704098291741,0.001,42513.0,42511.0,0.001]
[1704098292143,0.04485723,42515.0,42510.0,0.1995]
[1704098292561,0.006,42513.0,42510.0,0.1995]
[1704098292983,0.04485723,42515.0,42510.0,0.1995]
[1704098293105,0.05385723,42515.0,42510.0,0.268484]
[1704098293385,0.04585723,42515.0,42510.0,0.268484]
[1704098293611,0.005,42513.0,42510.0,0.1995]
[1704098293813,0.04585723,42515.0,42510.0,0.1995]
[1704098294218,0.05385723,42515.0,42510.0,0.1995]
[1704098294483,0.04585723,42515.0,42510.0,0.1995]
[1704098294669,0.005,42513.0,42510.0,0.1995]
[1704098294873,0.011,42513.0,42510.0,0.1995]
[1704098295281,0.005,42513.0,42510.0,0.1995]
[1704098295862,0.04585723,42515.0,42510.0,0.1995]
[1704098296107,0.04485723,42515.0,42510.0,0.1995]
[1704098296316,0.006,42513.0,42510.0,0.1995]
[1704098296719,0.011,42513.0,42510.0,0.1995]
[1704098296925,0.006,42513.0,42511.0,0.04674]
[1704098297506,0.03685723,42515.0,42511.0,0.04674]
[1704098297958,0.005,42513.0,42512.0,0.2219]
[1704098298941,0.04585723,42515.0,42512.0,0.2219]
[1704098299313,0.005,42513.0,42512.0,0.2219]
[1704098299586,0.023,42517.0,42512.0,0.28403711]
[1704098299775,0.25621711,42517.0,42512.0,0.35597711]
[1704098299977,0.25621711,42517.0,42512.0,0.28403711]
[1704098299978,0.005,42513.0,42512.0,0.28403711]
[1704098300351,0.005,42513.0,42512.0,0.34991711]
[1704098300780,0.31258513,42517.0,42512.0,0.34991711]
[1704098300993,0.32358513,42517.0,42512.0,0.34991711]
[1704098301196,0.32358513,42517.0,42513.0,0.05586]
[1704098301951,0.33558513,42517.0,42513.0,0.05586]
[1704098302400,0.31258513,42517.0,42513.0,0.12412282]
[1704098302832,0.32458513,42517.0,42513.0,0.05586]
[1704098303247,0.33558513,42517.0,42513.0,0.05586]
[1704098304409,0.27921711,42517.0,42513.0,0.05586]
[1704098304653,0.27921711,42517.0,42512.0,0.27164]
[1704098305291,0.27921711,42517.0,42512.0,0.2219]
[1704098305505,0.26721711,42517.0,42512.0,0.2219]
[1704098305965,0.26821711,42517.0,42512.0,0.2219]
[1704098306146,0.27921711,42517.0,42512.0,0.2219]
[1704098308080,0.33558513,42517.0,42512.0,0.2219]
[1704098308319,0.33558513,42517.0,42512.0,0.270464]
[1704098309012,0.42975013,42517.0,42512.0,0.270464]
[1704098311700,0.42975013,42517.0,42512.0,0.2219]
[1704098313527,0.17353302,42517.0,42512.0,0.2219]
[1704098313722,0.07936802,42517.0,42512.0,0.2219]
[1704098314051,0.07936802,42517.0,42512.0,0.27242]
[1704098314461,0.07936802,42517.0,42513.0,0.04542]
[1704098314664,0.07936802,42517.0,42513.0,0.0468]